[Event "Titled Tuesday Blitz January 04 2022"]
[White "Gaehwiler, Gabriel"]
[Black "Karttunen, Mika"]
[WhiteFideId "1314530"]
[BlackFideId "502081"]
[WhiteElo "2383"]
[BlackElo "2343"]
[Result "0-1"]
[Round "10"]
[TimeControl "180+1"]
[Date "2022.01.04"]
[WhiteClock "0:00:10"]
[BlackClock "0:00:27"]

1. Nf3 {[%clk 0:03:00]}  Nf6 {[%clk 0:02:59]} 2. c4 {[%clk 0:03:00]}  g6 {[%clk 0:02:55]} 3. b3 {[%clk 0:03:00]}  Bg7 {[%clk 0:02:54]} 4. Bb2 {[%clk 0:03:00]}  O-O {[%clk 0:02:54]} 5. g3 {[%clk 0:03:01]}  c6 {[%clk 0:02:53]} 6. Bg2 {[%clk 0:02:58]}  d5 {[%clk 0:02:52]} 7. O-O {[%clk 0:02:58]}  a5 {[%clk 0:02:48]} 8. cxd5 {[%clk 0:02:53]}  cxd5 {[%clk 0:02:47]} 9. Na3 {[%clk 0:02:53]}  Nc6 {[%clk 0:02:47]} 10. Nd4 {[%clk 0:02:48]}  Qb6 {[%clk 0:02:37]} 11. Nxc6 {[%clk 0:02:38]}  bxc6 {[%clk 0:02:37]} 12. Qc2 {[%clk 0:02:24]}  Nd7 {[%clk 0:02:14]} 13. Bxg7 {[%clk 0:02:21]}  Kxg7 {[%clk 0:02:14]} 14. Rfc1 {[%clk 0:02:20]}  Bb7 {[%clk 0:02:10]} 15. Qc3+ {[%clk 0:02:17]}  e5 {[%clk 0:02:04]} 16. Nc2 {[%clk 0:02:15]}  d4 {[%clk 0:01:42]} 17. Qc4 {[%clk 0:01:46]}  c5 {[%clk 0:01:42]} 18. Bxb7 {[%clk 0:01:39]}  Qxb7 {[%clk 0:01:41]} 19. Na3 {[%clk 0:01:31]}  Qb4 {[%clk 0:01:21]} 20. Nb5 {[%clk 0:01:11]}  Qxd2 {[%clk 0:00:55]} 21. Qd5 {[%clk 0:01:03]}  Rad8 {[%clk 0:00:54]} 22. Nd6 {[%clk 0:00:42]}  Qxe2 {[%clk 0:00:47]} 23. Nb7 {[%clk 0:00:39]}  Nf6 {[%clk 0:00:47]} 24. Qxc5 {[%clk 0:00:38]}  Rc8 {[%clk 0:00:41]} 25. Qxa5 {[%clk 0:00:35]}  Rxc1+ {[%clk 0:00:35]} 26. Rxc1 {[%clk 0:00:34]}  d3 {[%clk 0:00:29]} 27. Re1 {[%clk 0:00:28]}  Qc2 {[%clk 0:00:28]} 28. Qc5 {[%clk 0:00:10]}  d2 {[%clk 0:00:27]} 0-1


[Site "https://www.chess.com"]

[Event "Titled Tuesday Blitz January 04 2022"]
[White "Ibrahimli, Murad"]
[Black "Smirnov, Timofey"]
[WhiteFideId "13410229"]
[BlackFideId "24176427"]
[WhiteElo "2109"]
[BlackElo "2320"]
[Result "1-0"]
[Round "10"]
[TimeControl "180+1"]
[Date "2022.01.04"]
[WhiteClock "0:00:18"]
[BlackClock "0:00:01"]

1. Nf3 {[%clk 0:03:00]}  d5 {[%clk 0:02:59]} 2. d4 {[%clk 0:03:01]}  Nf6 {[%clk 0:02:58]} 3. Bf4 {[%clk 0:03:01]}  c5 {[%clk 0:02:58]} 4. e3 {[%clk 0:03:01]}  Nc6 {[%clk 0:02:59]} 5. Nbd2 {[%clk 0:03:01]}  Bf5 {[%clk 0:02:57]} 6. c3 {[%clk 0:03:01]}  e6 {[%clk 0:02:58]} 7. h3 {[%clk 0:02:59]}  Qb6 {[%clk 0:02:58]} 8. Qb3 {[%clk 0:02:56]}  c4 {[%clk 0:02:58]} 9. Qxb6 {[%clk 0:02:56]}  axb6 {[%clk 0:02:59]} 10. a3 {[%clk 0:02:56]}  b5 {[%clk 0:02:59]} 11. Rc1 {[%clk 0:02:56]}  h6 {[%clk 0:03:00]} 12. Be2 {[%clk 0:02:55]}  Be7 {[%clk 0:02:59]} 13. O-O {[%clk 0:02:55]}  Nd7 {[%clk 0:02:58]} 14. Bd1 {[%clk 0:02:55]}  Nb6 {[%clk 0:02:57]} 15. Bc2 {[%clk 0:02:55]}  Bxc2 {[%clk 0:02:54]} 16. Rxc2 {[%clk 0:02:56]}  f5 {[%clk 0:02:50]} 17. Bc7 {[%clk 0:02:56]}  Na4 {[%clk 0:02:49]} 18. Re1 {[%clk 0:02:56]}  Kd7 {[%clk 0:02:48]} 19. Bh2 {[%clk 0:02:57]}  g5 {[%clk 0:02:48]} 20. Ne5+ {[%clk 0:02:56]}  Nxe5 {[%clk 0:02:48]} 21. Bxe5 {[%clk 0:02:57]}  Rhg8 {[%clk 0:02:48]} 22. f3 {[%clk 0:02:57]}  g4 {[%clk 0:02:45]} 23. hxg4 {[%clk 0:02:57]}  fxg4 {[%clk 0:02:46]} 24. e4 {[%clk 0:02:58]}  gxf3 {[%clk 0:02:45]} 25. Nxf3 {[%clk 0:02:59]}  Raf8 {[%clk 0:02:43]} 26. Kh1 {[%clk 0:02:55]}  Nb6 {[%clk 0:02:22]} 27. exd5 {[%clk 0:02:50]}  Nxd5 {[%clk 0:02:20]} 28. Bh2 {[%clk 0:02:49]}  Bd6 {[%clk 0:02:15]} 29. Rce2 {[%clk 0:02:36]}  Rf6 {[%clk 0:02:14]} 30. Rf2 {[%clk 0:02:10]}  Bxh2 {[%clk 0:02:04]} 31. Kxh2 {[%clk 0:02:11]}  Kd6 {[%clk 0:02:04]} 32. Re4 {[%clk 0:02:08]}  Rf5 {[%clk 0:01:43]} 33. Rh4 {[%clk 0:02:05]}  Rg6 {[%clk 0:01:38]} 34. Kg1 {[%clk 0:01:48]}  h5 {[%clk 0:01:03]} 35. Ne5 {[%clk 0:01:46]}  Rxf2 {[%clk 0:01:00]} 36. Kxf2 {[%clk 0:01:47]}  Rf6+ {[%clk 0:01:00]} 37. Kg1 {[%clk 0:01:41]}  Rf5 {[%clk 0:00:56]} 38. Re4 {[%clk 0:01:37]}  Nf4 {[%clk 0:00:52]} 39. Re3 {[%clk 0:01:21]}  h4 {[%clk 0:00:43]} 40. Kh2 {[%clk 0:01:20]}  Kd5 {[%clk 0:00:36]} 41. Nf3 {[%clk 0:01:16]}  Nd3 {[%clk 0:00:17]} 42. Nxh4 {[%clk 0:01:15]}  Rh5 {[%clk 0:00:17]} 43. Kg3 {[%clk 0:01:15]}  Nxb2 {[%clk 0:00:17]} 44. Kg4 {[%clk 0:01:15]}  Rh7 {[%clk 0:00:17]} 45. Re5+ {[%clk 0:01:16]}  Kd6 {[%clk 0:00:17]} 46. Rxb5 {[%clk 0:01:16]}  Nd1 {[%clk 0:00:17]} 47. Rb6+ {[%clk 0:01:13]}  Kd5 {[%clk 0:00:14]} 48. Rb5+ {[%clk 0:01:03]}  Ke4 {[%clk 0:00:12]} 49. Nf3 {[%clk 0:00:59]}  Kd3 {[%clk 0:00:08]} 50. Kf4 {[%clk 0:00:31]}  Nxc3 {[%clk 0:00:08]} 51. Rb2 {[%clk 0:00:27]}  Nd5+ {[%clk 0:00:05]} 52. Ke5 {[%clk 0:00:27]}  c3 {[%clk 0:00:06]} 53. Rf2 {[%clk 0:00:25]}  Ne3 {[%clk 0:00:02]} 54. Ne1+ {[%clk 0:00:20]}  Kc4 {[%clk 0:00:02]} 55. Kxe6 {[%clk 0:00:21]}  Kxd4 {[%clk 0:00:01]} 56. g4 {[%clk 0:00:19]}  Rg7 {[%clk 0:00:01]} 57. Rf4+ {[%clk 0:00:18]}  Kc5 {[%clk 0:00:01]} 58. Nd3+ {[%clk 0:00:18]} 1-0


[Site "https://www.chess.com"]

[Event "Titled Tuesday Blitz January 04 2022"]
[White "Kamsky, Gata"]
[Black "Kosakowski, Jakub"]
[WhiteFideId "2000024"]
[BlackFideId "1185080"]
[WhiteElo "2645"]
[BlackElo "2476"]
[Result "1/2-1/2"]
[Round "10"]
[TimeControl "180+1"]
[Date "2022.01.04"]
[WhiteClock "0:00:47"]
[BlackClock "0:01:15"]

1. d4 {[%clk 0:03:00]}  f5 {[%clk 0:02:58]} 2. g3 {[%clk 0:02:53]}  Nf6 {[%clk 0:02:57]} 3. Bg2 {[%clk 0:02:54]}  g6 {[%clk 0:02:57]} 4. c3 {[%clk 0:02:53]}  Bg7 {[%clk 0:02:56]} 5. h4 {[%clk 0:02:54]}  d6 {[%clk 0:02:55]} 6. Nh3 {[%clk 0:02:51]}  e5 {[%clk 0:02:53]} 7. dxe5 {[%clk 0:02:47]}  dxe5 {[%clk 0:02:54]} 8. Qxd8+ {[%clk 0:02:48]}  Kxd8 {[%clk 0:02:55]} 9. e4 {[%clk 0:02:42]}  Nxe4 {[%clk 0:02:47]} 10. Bxe4 {[%clk 0:02:38]}  fxe4 {[%clk 0:02:47]} 11. Ng5 {[%clk 0:02:37]}  Ke7 {[%clk 0:02:47]} 12. Nxe4 {[%clk 0:02:36]}  h6 {[%clk 0:02:47]} 13. Be3 {[%clk 0:02:33]}  Bf5 {[%clk 0:02:46]} 14. Nbd2 {[%clk 0:02:33]}  b6 {[%clk 0:02:44]} 15. f3 {[%clk 0:02:32]}  Nd7 {[%clk 0:02:43]} 16. g4 {[%clk 0:02:31]}  Be6 {[%clk 0:02:43]} 17. O-O-O {[%clk 0:02:26]}  Rhf8 {[%clk 0:02:41]} 18. b3 {[%clk 0:02:20]}  Rad8 {[%clk 0:02:40]} 19. Rde1 {[%clk 0:02:17]}  Bd5 {[%clk 0:02:29]} 20. Rhf1 {[%clk 0:02:15]}  Rf7 {[%clk 0:02:28]} 21. h5 {[%clk 0:01:31]}  gxh5 {[%clk 0:02:23]} 22. gxh5 {[%clk 0:01:27]}  Rdf8 {[%clk 0:02:22]} 23. Rg1 {[%clk 0:01:27]}  Kd8 {[%clk 0:01:41]} 24. Rxg7 {[%clk 0:01:26]}  Rxg7 {[%clk 0:01:37]} 25. Bxh6 {[%clk 0:01:26]}  Rfg8 {[%clk 0:01:34]} 26. Bxg7 {[%clk 0:01:26]}  Rxg7 {[%clk 0:01:34]} 27. h6 {[%clk 0:01:22]}  Rh7 {[%clk 0:01:33]} 28. Rh1 {[%clk 0:01:22]}  Ke7 {[%clk 0:01:34]} 29. Ng5 {[%clk 0:01:20]}  Rh8 {[%clk 0:01:34]} 30. Nde4 {[%clk 0:01:19]}  Nf8 {[%clk 0:01:33]} 31. h7 {[%clk 0:01:17]}  Bxe4 {[%clk 0:01:30]} 32. fxe4 {[%clk 0:01:17]}  Kf6 {[%clk 0:01:31]} 33. Nf3 {[%clk 0:01:06]}  Rxh7 {[%clk 0:01:29]} 34. Rf1 {[%clk 0:01:05]}  Ne6 {[%clk 0:01:19]} 35. Nd4+ {[%clk 0:00:48]}  Nf4 {[%clk 0:01:18]} 36. Ne2 {[%clk 0:00:48]}  Kg5 {[%clk 0:01:14]} 37. Rg1+ {[%clk 0:00:48]}  Kf6 {[%clk 0:01:14]} 38. Rf1 {[%clk 0:00:48]}  Kg5 {[%clk 0:01:15]} 39. Rg1+ {[%clk 0:00:47]}  Kf6 {[%clk 0:01:15]} 40. Rf1 {[%clk 0:00:47]} 1/2-1/2


[Site "https://www.chess.com"]

[Event "Titled Tuesday Blitz January 04 2022"]
[White "Kravtsiv, Martyn"]
[Black "Howell, David W L"]
[WhiteFideId "14113147"]
[BlackFideId "410608"]
[WhiteElo "2694"]
[BlackElo "2559"]
[Result "0-1"]
[Round "10"]
[TimeControl "180+1"]
[Date "2022.01.04"]
[WhiteClock "0:00:24"]
[BlackClock "0:00:05"]

1. e4 {[%clk 0:03:00]}  c5 {[%clk 0:02:59]} 2. Nf3 {[%clk 0:03:00]}  Nc6 {[%clk 0:02:58]} 3. d4 {[%clk 0:03:00]}  cxd4 {[%clk 0:02:58]} 4. Nxd4 {[%clk 0:03:01]}  Nf6 {[%clk 0:02:58]} 5. Nc3 {[%clk 0:03:00]}  e6 {[%clk 0:02:58]} 6. Ndb5 {[%clk 0:02:59]}  Bb4 {[%clk 0:02:56]} 7. a3 {[%clk 0:02:59]}  Bxc3+ {[%clk 0:02:56]} 8. Nxc3 {[%clk 0:02:59]}  d5 {[%clk 0:02:57]} 9. exd5 {[%clk 0:02:59]}  exd5 {[%clk 0:02:57]} 10. Bd3 {[%clk 0:02:59]}  O-O {[%clk 0:02:54]} 11. O-O {[%clk 0:02:58]}  d4 {[%clk 0:02:55]} 12. Ne2 {[%clk 0:02:57]}  Bg4 {[%clk 0:02:52]} 13. h3 {[%clk 0:02:53]}  Bh5 {[%clk 0:02:49]} 14. Qd2 {[%clk 0:02:52]}  Bg6 {[%clk 0:02:41]} 15. Bxg6 {[%clk 0:02:40]}  hxg6 {[%clk 0:02:42]} 16. Rd1 {[%clk 0:02:40]}  Re8 {[%clk 0:02:32]} 17. Ng3 {[%clk 0:02:24]}  Ne4 {[%clk 0:02:21]} 18. Nxe4 {[%clk 0:02:16]}  Rxe4 {[%clk 0:02:22]} 19. Qd3 {[%clk 0:02:16]}  Qd5 {[%clk 0:02:13]} 20. c4 {[%clk 0:02:08]}  Qe6 {[%clk 0:02:07]} 21. Bd2 {[%clk 0:02:07]}  a5 {[%clk 0:01:53]} 22. Re1 {[%clk 0:02:07]}  Rxe1+ {[%clk 0:01:44]} 23. Rxe1 {[%clk 0:02:05]}  Qd6 {[%clk 0:01:45]} 24. Qe4 {[%clk 0:01:57]}  a4 {[%clk 0:01:41]} 25. Qd5 {[%clk 0:01:52]}  Qc7 {[%clk 0:01:38]} 26. h4 {[%clk 0:01:46]}  Qb6 {[%clk 0:01:28]} 27. Qb5 {[%clk 0:01:43]}  Qc7 {[%clk 0:01:16]} 28. Qd5 {[%clk 0:01:40]}  Qb6 {[%clk 0:01:16]} 29. Qb5 {[%clk 0:01:40]}  Qc7 {[%clk 0:01:10]} 30. g3 {[%clk 0:01:35]}  Qd7 {[%clk 0:01:08]} 31. Qd5 {[%clk 0:01:35]}  Qg4 {[%clk 0:01:01]} 32. Bg5 {[%clk 0:01:13]}  Rc8 {[%clk 0:00:46]} 33. Kg2 {[%clk 0:01:09]}  Qf5 {[%clk 0:00:40]} 34. Re4 {[%clk 0:01:04]}  d3 {[%clk 0:00:24]} 35. Qxd3 {[%clk 0:00:50]}  Ne5 {[%clk 0:00:24]} 36. Qe2 {[%clk 0:00:46]}  Nxc4 {[%clk 0:00:18]} 37. Re8+ {[%clk 0:00:36]}  Rxe8 {[%clk 0:00:17]} 38. Qxe8+ {[%clk 0:00:37]}  Kh7 {[%clk 0:00:18]} 39. Qxa4 {[%clk 0:00:36]}  Qd5+ {[%clk 0:00:07]} 40. Kg1 {[%clk 0:00:34]}  Nxb2 {[%clk 0:00:05]} 41. Qc2 {[%clk 0:00:33]}  Nc4 {[%clk 0:00:05]} 42. a4 {[%clk 0:00:33]}  Ne5 {[%clk 0:00:05]} 43. Be3 {[%clk 0:00:31]}  Nf3+ {[%clk 0:00:05]} 44. Kf1 {[%clk 0:00:31]}  Ne5 {[%clk 0:00:04]} 45. Ke2 {[%clk 0:00:30]}  Nc4 {[%clk 0:00:04]} 46. Qd3 {[%clk 0:00:30]}  Qc6 {[%clk 0:00:05]} 47. Bd4 {[%clk 0:00:29]}  Qxa4 {[%clk 0:00:04]} 48. h5 {[%clk 0:00:25]}  Qe8+ {[%clk 0:00:05]} 49. Kf1 {[%clk 0:00:24]}  Qc6 {[%clk 0:00:04]} 50. hxg6+ {[%clk 0:00:23]}  fxg6 {[%clk 0:00:05]} 51. Bc3 {[%clk 0:00:22]}  b5 {[%clk 0:00:05]} 52. Bd4 {[%clk 0:00:23]}  Qd5 {[%clk 0:00:04]} 53. Bc3 {[%clk 0:00:24]}  Qxd3+ {[%clk 0:00:05]} 0-1


[Site "https://www.chess.com"]

[Event "Titled Tuesday Blitz January 04 2022"]
[White "Migot, Tangi"]
[Black "Gunina, Valentina"]
[WhiteFideId "662445"]
[BlackFideId "4167570"]
[WhiteElo "2541"]
[BlackElo "2465"]
[Result "0-1"]
[Round "10"]
[TimeControl "180+1"]
[Date "2022.01.04"]
[WhiteClock "0:00:19"]
[BlackClock "0:00:57"]

1. e4 {[%clk 0:03:00]}  c6 {[%clk 0:03:00]} 2. Nc3 {[%clk 0:03:00]}  d5 {[%clk 0:03:00]} 3. d4 {[%clk 0:03:01]}  dxe4 {[%clk 0:03:00]} 4. Nxe4 {[%clk 0:03:01]}  Nf6 {[%clk 0:03:00]} 5. Nxf6+ {[%clk 0:03:01]}  exf6 {[%clk 0:03:01]} 6. Nf3 {[%clk 0:03:02]}  Bd6 {[%clk 0:03:01]} 7. g3 {[%clk 0:03:02]}  O-O {[%clk 0:03:01]} 8. Bg2 {[%clk 0:03:03]}  Bg4 {[%clk 0:03:01]} 9. O-O {[%clk 0:03:02]}  Nd7 {[%clk 0:03:01]} 10. Be3 {[%clk 0:03:02]}  Re8 {[%clk 0:03:00]} 11. Qd2 {[%clk 0:03:02]}  Nf8 {[%clk 0:03:00]} 12. c4 {[%clk 0:03:00]}  Qd7 {[%clk 0:02:59]} 13. Rfe1 {[%clk 0:02:55]}  Rad8 {[%clk 0:02:59]} 14. d5 {[%clk 0:02:49]}  cxd5 {[%clk 0:02:58]} 15. Qxd5 {[%clk 0:02:48]}  Qc7 {[%clk 0:02:53]} 16. Qb5 {[%clk 0:02:43]}  Ne6 {[%clk 0:02:50]} 17. Bxa7 {[%clk 0:02:36]}  Rc8 {[%clk 0:02:25]} 18. b3 {[%clk 0:02:27]}  h5 {[%clk 0:02:15]} 19. Nd4 {[%clk 0:02:20]}  Be5 {[%clk 0:02:11]} 20. Nxe6 {[%clk 0:02:13]}  Rxe6 {[%clk 0:02:11]} 21. Bxb7 {[%clk 0:01:45]}  Bxa1 {[%clk 0:02:05]} 22. Rxe6 {[%clk 0:01:40]}  fxe6 {[%clk 0:01:57]} 23. Bxc8 {[%clk 0:01:38]}  Qxc8 {[%clk 0:01:58]} 24. c5 {[%clk 0:01:29]}  Bf3 {[%clk 0:01:47]} 25. Qd3 {[%clk 0:01:22]}  Qc6 {[%clk 0:01:39]} 26. a4 {[%clk 0:00:48]}  Bh1 {[%clk 0:01:32]} 27. f3 {[%clk 0:00:48]}  Bxf3 {[%clk 0:01:31]} 28. Kf2 {[%clk 0:00:44]}  Bh1 {[%clk 0:01:29]} 29. b4 {[%clk 0:00:42]}  Qg2+ {[%clk 0:01:27]} 30. Ke1 {[%clk 0:00:43]}  Qg1+ {[%clk 0:01:28]} 31. Kd2 {[%clk 0:00:43]}  Qxh2+ {[%clk 0:01:28]} 32. Kc1 {[%clk 0:00:42]}  Qb2+ {[%clk 0:01:28]} 33. Kd1 {[%clk 0:00:43]}  Qxb4 {[%clk 0:01:26]} 34. Qb5 {[%clk 0:00:34]}  Bf3+ {[%clk 0:01:23]} 35. Kc2 {[%clk 0:00:30]}  Qc3+ {[%clk 0:01:18]} 36. Kb1 {[%clk 0:00:29]}  Be4+ {[%clk 0:01:18]} 37. Ka2 {[%clk 0:00:28]}  Bd5+ {[%clk 0:01:18]} 38. Kb1 {[%clk 0:00:29]}  Kh7 {[%clk 0:01:14]} 39. Bb6 {[%clk 0:00:19]}  Bc4 {[%clk 0:00:58]} 40. Ba5 {[%clk 0:00:19]}  Qd3+ {[%clk 0:00:57]} 0-1


[Site "https://www.chess.com"]

[Event "Titled Tuesday Blitz January 04 2022"]
[White "Nesterov, Arseniy"]
[Black "Tristan, Leonardo"]
[WhiteFideId "24198455"]
[BlackFideId "113816"]
[WhiteElo "2489"]
[BlackElo "2404"]
[Result "1-0"]
[Round "10"]
[TimeControl "180+1"]
[Date "2022.01.04"]
[WhiteClock "0:00:07"]
[BlackClock "0:00:04"]

1. d4 {[%clk 0:03:00]}  d5 {[%clk 0:03:00]} 2. c4 {[%clk 0:03:01]}  e6 {[%clk 0:03:00]} 3. Nc3 {[%clk 0:03:01]}  a6 {[%clk 0:03:01]} 4. cxd5 {[%clk 0:02:58]}  exd5 {[%clk 0:03:02]} 5. Qb3 {[%clk 0:02:51]}  c5 {[%clk 0:02:59]} 6. Nxd5 {[%clk 0:02:48]}  Nc6 {[%clk 0:02:48]} 7. Nb6 {[%clk 0:02:25]}  Nxd4 {[%clk 0:02:42]} 8. Qa4+ {[%clk 0:02:24]}  Bd7 {[%clk 0:02:42]} 9. Qxd7+ {[%clk 0:01:51]}  Qxd7 {[%clk 0:02:41]} 10. Nxd7 {[%clk 0:01:52]}  Kxd7 {[%clk 0:02:42]} 11. Kd1 {[%clk 0:01:44]}  Nf6 {[%clk 0:02:38]} 12. e3 {[%clk 0:01:42]}  Nc6 {[%clk 0:02:34]} 13. a3 {[%clk 0:01:35]}  Kc7 {[%clk 0:02:21]} 14. Kc2 {[%clk 0:01:35]}  Be7 {[%clk 0:02:10]} 15. Bd2 {[%clk 0:01:12]}  b5 {[%clk 0:02:08]} 16. g3 {[%clk 0:01:05]}  Rhe8 {[%clk 0:01:55]} 17. Bg2 {[%clk 0:01:04]}  c4 {[%clk 0:01:55]} 18. Ne2 {[%clk 0:00:54]}  Bc5 {[%clk 0:01:50]} 19. Bc3 {[%clk 0:00:51]}  Ng4 {[%clk 0:01:38]} 20. Raf1 {[%clk 0:00:34]}  Bxe3 {[%clk 0:01:30]} 21. Bxc6 {[%clk 0:00:34]}  Kxc6 {[%clk 0:01:29]} 22. fxe3 {[%clk 0:00:29]}  Nxe3+ {[%clk 0:01:30]} 23. Kd2 {[%clk 0:00:26]}  Rad8+ {[%clk 0:01:29]} 24. Nd4+ {[%clk 0:00:27]}  Kc5 {[%clk 0:01:25]} 25. Rxf7 {[%clk 0:00:21]}  a5 {[%clk 0:00:36]} 26. Re1 {[%clk 0:00:20]}  Nd5 {[%clk 0:00:35]} 27. Rxe8 {[%clk 0:00:12]}  Rxe8 {[%clk 0:00:36]} 28. Nc2 {[%clk 0:00:08]}  b4 {[%clk 0:00:33]} 29. axb4+ {[%clk 0:00:06]}  axb4 {[%clk 0:00:34]} 30. Bd4+ {[%clk 0:00:06]}  Kb5 {[%clk 0:00:34]} 31. Rf5 {[%clk 0:00:06]}  Kc6 {[%clk 0:00:34]} 32. Ne3 {[%clk 0:00:06]}  Nc7 {[%clk 0:00:09]} 33. Rc5+ {[%clk 0:00:06]}  Kb7 {[%clk 0:00:09]} 34. Nxc4 {[%clk 0:00:06]}  Rd8 {[%clk 0:00:06]} 35. Ke3 {[%clk 0:00:05]}  Ne6 {[%clk 0:00:07]} 36. Na5+ {[%clk 0:00:05]}  Ka6 {[%clk 0:00:06]} 37. Rc6+ {[%clk 0:00:05]}  Kxa5 {[%clk 0:00:07]} 38. Rxe6 {[%clk 0:00:06]}  g6 {[%clk 0:00:07]} 39. b3 {[%clk 0:00:05]}  Rc8 {[%clk 0:00:04]} 40. Kd3 {[%clk 0:00:05]}  Rc1 {[%clk 0:00:04]} 41. Re5+ {[%clk 0:00:05]}  Ka6 {[%clk 0:00:04]} 42. Bc5 {[%clk 0:00:06]}  Rd1+ {[%clk 0:00:01]} 43. Kc4 {[%clk 0:00:06]}  Rd2 {[%clk 0:00:02]} 44. h4 {[%clk 0:00:06]}  Rg2 {[%clk 0:00:03]} 45. Re3 {[%clk 0:00:06]}  Kb7 {[%clk 0:00:02]} 46. Kb5 {[%clk 0:00:06]}  Rb2 {[%clk 0:00:02]} 47. Bxb4 {[%clk 0:00:06]}  Rg2 {[%clk 0:00:02]} 48. Bc5 {[%clk 0:00:07]}  Kc8 {[%clk 0:00:03]} 49. b4 {[%clk 0:00:07]}  Rc2 {[%clk 0:00:03]} 50. Kc6 {[%clk 0:00:07]}  Ra2 {[%clk 0:00:04]} 51. Re8# {[%clk 0:00:07]} 1-0


[Site "https://www.chess.com"]

[Event "Titled Tuesday Blitz January 04 2022"]
[White "Padmini, Rout"]
[Black "Maly, Alexey"]
[WhiteFideId "5029295"]
[BlackFideId "14103184"]
[WhiteElo "2181"]
[BlackElo "2266"]
[Result "0-1"]
[Round "10"]
[TimeControl "180+1"]
[Date "2022.01.04"]
[WhiteClock "0:01:04"]
[BlackClock "0:01:57"]

1. e4 {[%clk 0:03:00]}  c6 {[%clk 0:02:54]} 2. Nc3 {[%clk 0:02:59]}  d5 {[%clk 0:02:54]} 3. Nf3 {[%clk 0:03:00]}  Bg4 {[%clk 0:02:54]} 4. h3 {[%clk 0:02:59]}  Bxf3 {[%clk 0:02:54]} 5. Qxf3 {[%clk 0:03:00]}  dxe4 {[%clk 0:02:55]} 6. Nxe4 {[%clk 0:02:59]}  Nd7 {[%clk 0:02:55]} 7. Bc4 {[%clk 0:02:58]}  Ngf6 {[%clk 0:02:55]} 8. Nxf6+ {[%clk 0:02:55]}  Nxf6 {[%clk 0:02:56]} 9. O-O {[%clk 0:02:54]}  g6 {[%clk 0:02:56]} 10. b3 {[%clk 0:02:54]}  Bg7 {[%clk 0:02:57]} 11. Bb2 {[%clk 0:02:54]}  O-O {[%clk 0:02:57]} 12. Rad1 {[%clk 0:02:53]}  Nd5 {[%clk 0:02:55]} 13. Bxg7 {[%clk 0:02:52]}  Kxg7 {[%clk 0:02:56]} 14. a4 {[%clk 0:02:51]}  a5 {[%clk 0:02:56]} 15. Rfe1 {[%clk 0:02:50]}  e6 {[%clk 0:02:56]} 16. g3 {[%clk 0:02:47]}  Qf6 {[%clk 0:02:56]} 17. Kg2 {[%clk 0:02:45]}  Qxf3+ {[%clk 0:02:55]} 18. Kxf3 {[%clk 0:02:46]}  Kf6 {[%clk 0:02:56]} 19. h4 {[%clk 0:02:46]}  h5 {[%clk 0:02:56]} 20. Bf1 {[%clk 0:02:40]}  Rfb8 {[%clk 0:02:53]} 21. c4 {[%clk 0:02:39]}  Nb4 {[%clk 0:02:52]} 22. d4 {[%clk 0:02:38]}  Rd8 {[%clk 0:02:52]} 23. Re2 {[%clk 0:02:39]}  Rd7 {[%clk 0:02:52]} 24. Red2 {[%clk 0:02:39]}  Rad8 {[%clk 0:02:52]} 25. Ke3 {[%clk 0:02:39]}  Ke7 {[%clk 0:02:48]} 26. Be2 {[%clk 0:02:39]}  b6 {[%clk 0:02:48]} 27. Bf3 {[%clk 0:02:38]}  c5 {[%clk 0:02:45]} 28. dxc5 {[%clk 0:02:16]}  bxc5 {[%clk 0:02:43]} 29. Rxd7+ {[%clk 0:02:13]}  Rxd7 {[%clk 0:02:44]} 30. Rxd7+ {[%clk 0:02:12]}  Kxd7 {[%clk 0:02:45]} 31. Kd2 {[%clk 0:02:12]}  Kd6 {[%clk 0:02:42]} 32. g4 {[%clk 0:02:11]}  hxg4 {[%clk 0:02:40]} 33. Bxg4 {[%clk 0:02:12]}  Ke5 {[%clk 0:02:38]} 34. h5 {[%clk 0:02:12]}  gxh5 {[%clk 0:02:38]} 35. Bxh5 {[%clk 0:02:12]}  f5 {[%clk 0:02:38]} 36. Bf3 {[%clk 0:01:58]}  Kd4 {[%clk 0:02:36]} 37. Bb7 {[%clk 0:01:54]}  e5 {[%clk 0:02:34]} 38. f3 {[%clk 0:01:52]}  e4 {[%clk 0:02:28]} 39. fxe4 {[%clk 0:01:52]}  fxe4 {[%clk 0:02:29]} 40. Ba8 {[%clk 0:01:46]}  e3+ {[%clk 0:02:21]} 41. Ke2 {[%clk 0:01:46]}  Na2 {[%clk 0:02:09]} 42. Kd1 {[%clk 0:01:08]}  Kd3 {[%clk 0:02:00]} 43. Bf3 {[%clk 0:01:06]}  Nc3+ {[%clk 0:01:57]} 44. Ke1 {[%clk 0:01:04]}  Kc2 {[%clk 0:01:57]} 0-1


[Site "https://www.chess.com"]